[Event "Titled Tuesday Blitz July 11 Early 2023"]
[White "Nefedov, Sergey"]
[Black "Pakleza, Zbigniew"]
[WhiteFideId "24113417"]
[BlackFideId "1119290"]
[WhiteElo "2642"]
[BlackElo "2819"]
[Result "0-1"]
[Round "8"]
[TimeControl "180+2"]
[Date "2023.07.11"]
[WhiteClock "0:00:00"]
[BlackClock "0:00:04"]
[Board "26"]

1. d4 {[%clk 0:03:00]}  d6 {[%clk 0:02:55]} 2. Nf3 {[%clk 0:02:59]}  Bg4 {[%clk 0:02:55]} 3. c4 {[%clk 0:02:57]}  c6 {[%clk 0:02:54]} 4. Nc3 {[%clk 0:02:57]}  Nd7 {[%clk 0:02:53]} 5. Qb3 {[%clk 0:02:37]}  Qb6 {[%clk 0:02:52]} 6. Qxb6 {[%clk 0:02:37]}  axb6 {[%clk 0:02:52]} 7. e3 {[%clk 0:02:29]}  e6 {[%clk 0:02:51]} 8. Be2 {[%clk 0:02:26]}  d5 {[%clk 0:02:50]} 9. e4 {[%clk 0:02:11]}  dxc4 {[%clk 0:02:32]} 10. Bxc4 {[%clk 0:02:10]}  Ngf6 {[%clk 0:02:28]} 11. Be3 {[%clk 0:02:06]}  b5 {[%clk 0:02:27]} 12. Bd3 {[%clk 0:02:05]}  Bb4 {[%clk 0:02:19]} 13. Ke2 {[%clk 0:02:01]}  Bh5 {[%clk 0:02:17]} 14. Rhc1 {[%clk 0:01:58]}  O-O {[%clk 0:02:15]} 15. h3 {[%clk 0:01:58]}  Bg6 {[%clk 0:02:11]} 16. Nd2 {[%clk 0:01:56]}  e5 {[%clk 0:02:05]} 17. f3 {[%clk 0:01:53]}  Rfd8 {[%clk 0:02:01]} 18. a3 {[%clk 0:01:41]}  Be7 {[%clk 0:01:54]} 19. d5 {[%clk 0:01:34]}  h5 {[%clk 0:01:50]} 20. Nb3 {[%clk 0:01:16]}  h4 {[%clk 0:01:45]} 21. dxc6 {[%clk 0:01:04]}  bxc6 {[%clk 0:01:46]} 22. a4 {[%clk 0:01:05]}  bxa4 {[%clk 0:01:33]} 23. Nxa4 {[%clk 0:00:55]}  Rab8 {[%clk 0:01:25]} 24. Bc4 {[%clk 0:00:50]}  Nh5 {[%clk 0:01:13]} 25. Rc2 {[%clk 0:00:36]}  Kh7 {[%clk 0:01:05]} 26. Nbc5 {[%clk 0:00:28]}  Nxc5 {[%clk 0:00:57]} 27. Nxc5 {[%clk 0:00:28]}  Ng3+ {[%clk 0:00:53]} 28. Kf2 {[%clk 0:00:25]}  Bxc5 {[%clk 0:00:47]} 29. Bxc5 {[%clk 0:00:25]}  Bxe4 {[%clk 0:00:48]} 30. fxe4 {[%clk 0:00:15]}  Nxe4+ {[%clk 0:00:48]} 31. Ke2 {[%clk 0:00:11]}  Nxc5 {[%clk 0:00:49]} 32. Bxf7 {[%clk 0:00:11]}  Ne4 {[%clk 0:00:42]} 33. Ra4 {[%clk 0:00:11]}  Rxb2 {[%clk 0:00:19]} 34. Rxb2 {[%clk 0:00:06]}  Nc3+ {[%clk 0:00:19]} 35. Ke3 {[%clk 0:00:04]}  Nxa4 {[%clk 0:00:20]} 36. Rb4 {[%clk 0:00:04]}  Rd4 {[%clk 0:00:20]} 37. Rxd4 {[%clk 0:00:04]}  exd4+ {[%clk 0:00:21]} 38. Kxd4 {[%clk 0:00:05]}  Kh6 {[%clk 0:00:20]} 39. Be8 {[%clk 0:00:05]}  c5+ {[%clk 0:00:11]} 40. Kc4 {[%clk 0:00:05]}  Nb2+ {[%clk 0:00:12]} 41. Kxc5 {[%clk 0:00:06]}  Kg5 {[%clk 0:00:12]} 42. Kd4 {[%clk 0:00:06]}  Kf4 {[%clk 0:00:13]} 43. Bh5 {[%clk 0:00:04]}  Na4 {[%clk 0:00:06]} 44. Bd1 {[%clk 0:00:04]}  Nb6 {[%clk 0:00:06]} 45. Kc5 {[%clk 0:00:04]}  Nd7+ {[%clk 0:00:06]} 46. Kd6 {[%clk 0:00:05]}  Ne5 {[%clk 0:00:04]} 47. Ke6 {[%clk 0:00:03]}  Nd3 {[%clk 0:00:02]} 48. Bf3 {[%clk 0:00:02]}  Ne1 {[%clk 0:00:02]} 49. Bd5 {[%clk 0:00:01]}  Kg3 {[%clk 0:00:02]} 50. Kf7 {[%clk 0:00:02]}  Nxg2 {[%clk 0:00:01]} 51. Be6 {[%clk 0:00:01]}  Nf4 {[%clk 0:00:02]} 52. Bd7 {[%clk 0:00:02]}  g5 {[%clk 0:00:02]} 53. Kf6 {[%clk 0:00:02]}  Nxh3 {[%clk 0:00:02]} 54. Kg6 {[%clk 0:00:02]}  g4 {[%clk 0:00:03]} 55. Kh5 {[%clk 0:00:02]}  Nf2 {[%clk 0:00:03]} 56. Kg5 {[%clk 0:00:02]}  h3 {[%clk 0:00:04]} 57. Bc6 {[%clk 0:00:00]}  h2 {[%clk 0:00:04]} 0-1


[Site "https://www.chess.com"]

[Event "Titled Tuesday Blitz July 11 Early 2023"]
[White "Piesik, Piotr"]
[Black "Bachmann, Axel"]
[WhiteFideId "1136194"]
[BlackFideId "3700488"]
[WhiteElo "2613"]
[BlackElo "2800"]
[Result "0-1"]
[Round "8"]
[TimeControl "180+2"]
[Date "2023.07.11"]
[WhiteClock "0:01:43"]
[BlackClock "0:01:13"]
[Board "29"]

1. Nf3 {[%clk 0:02:54]}  Nf6 {[%clk 0:02:59]} 2. g3 {[%clk 0:02:53]}  d5 {[%clk 0:02:59]} 3. Bg2 {[%clk 0:02:53]}  Bg4 {[%clk 0:02:58]} 4. O-O {[%clk 0:02:54]}  Nbd7 {[%clk 0:02:57]} 5. d3 {[%clk 0:02:54]}  e5 {[%clk 0:02:53]} 6. Nbd2 {[%clk 0:02:54]}  h6 {[%clk 0:02:52]} 7. e4 {[%clk 0:02:53]}  dxe4 {[%clk 0:02:51]} 8. dxe4 {[%clk 0:02:53]}  c6 {[%clk 0:02:50]} 9. h3 {[%clk 0:02:52]}  Be6 {[%clk 0:02:50]} 10. Qe2 {[%clk 0:02:53]}  b5 {[%clk 0:02:46]} 11. a4 {[%clk 0:02:52]}  a6 {[%clk 0:02:45]} 12. axb5 {[%clk 0:02:52]}  axb5 {[%clk 0:02:45]} 13. Rxa8 {[%clk 0:02:51]}  Qxa8 {[%clk 0:02:46]} 14. b3 {[%clk 0:02:48]}  Qa2 {[%clk 0:02:41]} 15. Ne1 {[%clk 0:02:47]}  Bc5 {[%clk 0:02:36]} 16. Kh2 {[%clk 0:02:41]}  h5 {[%clk 0:02:11]} 17. Ndf3 {[%clk 0:02:29]}  Bxb3 {[%clk 0:01:54]} 18. Bg5 {[%clk 0:02:24]}  Be7 {[%clk 0:01:35]} 19. Qe3 {[%clk 0:02:07]}  Bc4 {[%clk 0:01:32]} 20. Nd3 {[%clk 0:02:04]}  Qxc2 {[%clk 0:01:19]} 21. Nfe1 {[%clk 0:01:54]}  Qc3 {[%clk 0:01:17]} 22. f4 {[%clk 0:01:53]}  Ng4+ {[%clk 0:01:12]} 23. hxg4 {[%clk 0:01:51]}  hxg4+ {[%clk 0:01:13]} 24. Kg1 {[%clk 0:01:43]}  Bc5 {[%clk 0:01:13]} 0-1


[Site "https://www.chess.com"]

[Event "Titled Tuesday Blitz July 11 Early 2023"]
[White "Kosteniuk, Alexandra"]
[Black "Weishaeutel, Moritz"]
[WhiteFideId "4128125"]
[BlackFideId "12967300"]
[WhiteElo "2789"]
[BlackElo "2607"]
[Result "1-0"]
[Round "8"]
[TimeControl "180+2"]
[Date "2023.07.11"]
[WhiteClock "0:00:28"]
[BlackClock "0:00:00"]
[Board "30"]

1. e4 {[%clk 0:03:00]}  e5 {[%clk 0:02:58]} 2. Nf3 {[%clk 0:03:00]}  Nf6 {[%clk 0:02:59]} 3. Nxe5 {[%clk 0:02:59]}  Nxe4 {[%clk 0:02:59]} 4. Qe2 {[%clk 0:02:58]}  Qe7 {[%clk 0:03:00]} 5. Qxe4 {[%clk 0:02:57]}  d6 {[%clk 0:03:00]} 6. d4 {[%clk 0:02:57]}  dxe5 {[%clk 0:03:01]} 7. dxe5 {[%clk 0:02:57]}  Nc6 {[%clk 0:03:02]} 8. Nc3 {[%clk 0:02:48]}  Qxe5 {[%clk 0:03:02]} 9. Qxe5+ {[%clk 0:02:48]}  Nxe5 {[%clk 0:03:03]} 10. Bf4 {[%clk 0:02:48]}  Bd6 {[%clk 0:03:01]} 11. Nb5 {[%clk 0:02:33]}  Nf3+ {[%clk 0:03:00]} 12. Ke2 {[%clk 0:02:19]}  Nd4+ {[%clk 0:03:00]} 13. Nxd4 {[%clk 0:02:06]}  Bxf4 {[%clk 0:03:00]} 14. Kf3 {[%clk 0:02:06]}  Be5 {[%clk 0:02:53]} 15. Re1 {[%clk 0:02:05]}  f6 {[%clk 0:02:53]} 16. Bb5+ {[%clk 0:02:02]}  Ke7 {[%clk 0:02:17]} 17. Bd3 {[%clk 0:01:52]}  Rd8 {[%clk 0:02:06]} 18. Nf5+ {[%clk 0:01:12]}  Kf8 {[%clk 0:02:03]} 19. Ne3 {[%clk 0:01:02]}  Bxb2 {[%clk 0:01:56]} 20. Bxh7 {[%clk 0:01:01]}  Be6 {[%clk 0:01:37]} 21. Rb1 {[%clk 0:01:00]}  Bd4 {[%clk 0:01:36]} 22. Be4 {[%clk 0:00:57]}  Rab8 {[%clk 0:01:31]} 23. Rxb7 {[%clk 0:00:52]}  Rxb7 {[%clk 0:01:30]} 24. Bxb7 {[%clk 0:00:53]}  Bxa2 {[%clk 0:01:30]} 25. Rd1 {[%clk 0:00:53]}  Rb8 {[%clk 0:01:04]} 26. Rxd4 {[%clk 0:00:40]}  Rxb7 {[%clk 0:01:04]} 27. Ra4 {[%clk 0:00:40]}  Be6 {[%clk 0:01:04]} 28. Ra5 {[%clk 0:00:40]}  Ke7 {[%clk 0:00:52]} 29. h4 {[%clk 0:00:40]}  Kd6 {[%clk 0:00:22]} 30. g4 {[%clk 0:00:40]}  Kc6 {[%clk 0:00:23]} 31. Ra6+ {[%clk 0:00:38]}  Kd7 {[%clk 0:00:21]} 32. g5 {[%clk 0:00:36]}  fxg5 {[%clk 0:00:20]} 33. hxg5 {[%clk 0:00:37]}  Rb5 {[%clk 0:00:18]} 34. Kf4 {[%clk 0:00:36]}  Rb4+ {[%clk 0:00:18]} 35. Kg3 {[%clk 0:00:37]}  Rb7 {[%clk 0:00:11]} 36. f4 {[%clk 0:00:35]}  g6 {[%clk 0:00:06]} 37. Ng4 {[%clk 0:00:28]}  Rb1 {[%clk 0:00:04]} 38. Ne5+ {[%clk 0:00:28]}  Kc8 {[%clk 0:00:00]} 39. Rxe6 {[%clk 0:00:28]} 1-0


[Site "https://www.chess.com"]

[Event "Titled Tuesday Blitz July 11 Early 2023"]
[White "Gorovets, Andrey"]
[Black "Altman, Joshua"]
[WhiteFideId "13504037"]
[BlackFideId "426210"]
[WhiteElo "2763"]
[BlackElo "2604"]
[Result "1-0"]
[Round "8"]
[TimeControl "180+2"]
[Date "2023.07.11"]
[WhiteClock "0:00:04"]
[BlackClock "0:00:01"]
[Board "31"]

1. d4 {[%clk 0:03:00]}  Nf6 {[%clk 0:03:00]} 2. Nf3 {[%clk 0:03:00]}  e6 {[%clk 0:03:00]} 3. c4 {[%clk 0:02:59]}  b6 {[%clk 0:03:00]} 4. g3 {[%clk 0:02:59]}  Bb7 {[%clk 0:03:01]} 5. Bg2 {[%clk 0:03:00]}  Bb4+ {[%clk 0:03:00]} 6. Bd2 {[%clk 0:02:57]}  Bxd2+ {[%clk 0:03:00]} 7. Qxd2 {[%clk 0:02:56]}  O-O {[%clk 0:03:00]} 8. O-O {[%clk 0:02:49]}  d6 {[%clk 0:03:00]} 9. Qf4 {[%clk 0:02:46]}  Nbd7 {[%clk 0:02:48]} 10. Nc3 {[%clk 0:02:45]}  Qe7 {[%clk 0:02:42]} 11. e4 {[%clk 0:02:44]}  e5 {[%clk 0:02:41]} 12. Qe3 {[%clk 0:02:43]}  Rfe8 {[%clk 0:02:36]} 13. Rfe1 {[%clk 0:02:42]}  g6 {[%clk 0:02:28]} 14. Rad1 {[%clk 0:02:41]}  a5 {[%clk 0:02:22]} 15. b3 {[%clk 0:02:36]}  Rac8 {[%clk 0:02:19]} 16. Bh3 {[%clk 0:02:25]}  Rcd8 {[%clk 0:02:14]} 17. d5 {[%clk 0:02:15]}  Nc5 {[%clk 0:02:13]} 18. Nd2 {[%clk 0:02:09]}  Bc8 {[%clk 0:02:13]} 19. Bxc8 {[%clk 0:02:08]}  Rxc8 {[%clk 0:02:13]} 20. a3 {[%clk 0:02:03]}  Ra8 {[%clk 0:02:03]} 21. b4 {[%clk 0:02:01]}  axb4 {[%clk 0:02:00]} 22. axb4 {[%clk 0:02:02]}  Na4 {[%clk 0:01:49]} 23. Nb5 {[%clk 0:02:02]}  Qd7 {[%clk 0:01:45]} 24. Qb3 {[%clk 0:01:53]}  Ra6 {[%clk 0:01:24]} 25. Ra1 {[%clk 0:01:48]}  Rea8 {[%clk 0:01:24]} 26. Ra3 {[%clk 0:01:49]}  c6 {[%clk 0:01:12]} 27. dxc6 {[%clk 0:01:48]}  Qxc6 {[%clk 0:01:13]} 28. Kg2 {[%clk 0:01:02]}  d5 {[%clk 0:00:53]} 29. exd5 {[%clk 0:00:56]}  Nxd5 {[%clk 0:00:53]} 30. Qf3 {[%clk 0:00:55]}  Nxb4 {[%clk 0:00:51]} 31. Qxc6 {[%clk 0:00:55]}  Nxc6 {[%clk 0:00:52]} 32. Nc7 {[%clk 0:00:55]}  Nc5 {[%clk 0:00:47]} 33. Nxa6 {[%clk 0:00:47]}  Rxa6 {[%clk 0:00:47]} 34. Rxa6 {[%clk 0:00:45]}  Nxa6 {[%clk 0:00:48]} 35. Ra1 {[%clk 0:00:42]}  Nab4 {[%clk 0:00:45]} 36. g4 {[%clk 0:00:40]}  Kg7 {[%clk 0:00:45]} 37. g5 {[%clk 0:00:39]}  h6 {[%clk 0:00:39]} 38. h4 {[%clk 0:00:39]}  hxg5 {[%clk 0:00:39]} 39. hxg5 {[%clk 0:00:40]}  f6 {[%clk 0:00:39]} 40. gxf6+ {[%clk 0:00:33]}  Kxf6 {[%clk 0:00:39]} 41. Ra8 {[%clk 0:00:31]}  Nd4 {[%clk 0:00:34]} 42. Rb8 {[%clk 0:00:28]}  Kf5 {[%clk 0:00:32]} 43. Rxb6 {[%clk 0:00:28]}  Nd3 {[%clk 0:00:33]} 44. Rb8 {[%clk 0:00:24]}  Nf4+ {[%clk 0:00:31]} 45. Kf1 {[%clk 0:00:24]}  Nd3 {[%clk 0:00:30]} 46. Rf8+ {[%clk 0:00:20]}  Ke6 {[%clk 0:00:28]} 47. Ne4 {[%clk 0:00:21]}  Nb3 {[%clk 0:00:22]} 48. Rf6+ {[%clk 0:00:19]}  Ke7 {[%clk 0:00:22]} 49. Rxg6 {[%clk 0:00:19]}  Nf4 {[%clk 0:00:21]} 50. Ra6 {[%clk 0:00:18]}  Nd4 {[%clk 0:00:20]} 51. c5 {[%clk 0:00:14]}  Kd7 {[%clk 0:00:19]} 52. Kg1 {[%clk 0:00:12]}  Kc7 {[%clk 0:00:19]} 53. Kh2 {[%clk 0:00:12]}  Nd3 {[%clk 0:00:19]} 54. Kg3 {[%clk 0:00:10]}  Nb4 {[%clk 0:00:14]} 55. Rd6 {[%clk 0:00:09]}  Nf5+ {[%clk 0:00:14]} 56. Kg4 {[%clk 0:00:08]}  Nxd6 {[%clk 0:00:14]} 57. cxd6+ {[%clk 0:00:07]}  Kd7 {[%clk 0:00:13]} 58. Kf5 {[%clk 0:00:06]}  Nc6 {[%clk 0:00:13]} 59. Kf6 {[%clk 0:00:05]}  Kd8 {[%clk 0:00:06]} 60. Ke6 {[%clk 0:00:05]}  Ke8 {[%clk 0:00:06]} 61. Nc5 {[%clk 0:00:04]}  Nb8 {[%clk 0:00:02]} 62. d7+ {[%clk 0:00:02]}  Nxd7 {[%clk 0:00:02]} 63. Nxd7 {[%clk 0:00:03]}  e4 {[%clk 0:00:02]} 64. Nf6+ {[%clk 0:00:03]}  Kf8 {[%clk 0:00:01]} 65. Nxe4 {[%clk 0:00:04]} 1-0


[Site "https://www.chess.com"]

[Event "Titled Tuesday Blitz July 11 Early 2023"]
[White "Concio, Michael Jr."]
[Black "Prestia, Paris"]
[WhiteFideId "5217873"]
[BlackFideId "30925959"]
[WhiteElo "2759"]
[BlackElo "2592"]
[Result "1/2-1/2"]
[Round "8"]
[TimeControl "180+2"]
[Date "2023.07.11"]
[WhiteClock "0:00:02"]
[BlackClock "0:00:10"]
[Board "32"]

1. e4 {[%clk 0:03:00]}  c5 {[%clk 0:03:00]} 2. Nc3 {[%clk 0:02:59]}  Nc6 {[%clk 0:03:00]} 3. g3 {[%clk 0:03:00]}  g6 {[%clk 0:02:59]} 4. d3 {[%clk 0:03:01]}  Bg7 {[%clk 0:03:00]} 5. Bg2 {[%clk 0:03:01]}  Rb8 {[%clk 0:03:01]} 6. Be3 {[%clk 0:03:01]}  d6 {[%clk 0:03:00]} 7. a4 {[%clk 0:02:58]}  a6 {[%clk 0:03:00]} 8. Qd2 {[%clk 0:02:57]}  b5 {[%clk 0:03:00]} 9. axb5 {[%clk 0:02:58]}  axb5 {[%clk 0:03:00]} 10. Nge2 {[%clk 0:02:59]}  b4 {[%clk 0:02:59]} 11. Nd1 {[%clk 0:02:59]}  Nd4 {[%clk 0:03:00]} 12. O-O {[%clk 0:02:58]}  e6 {[%clk 0:03:00]} 13. h4 {[%clk 0:02:44]}  h5 {[%clk 0:02:56]} 14. f3 {[%clk 0:02:43]}  Ne7 {[%clk 0:02:55]} 15. Kh2 {[%clk 0:02:40]}  Bd7 {[%clk 0:02:40]} 16. Nxd4 {[%clk 0:02:40]}  cxd4 {[%clk 0:02:39]} 17. Bg1 {[%clk 0:02:41]}  Qc7 {[%clk 0:02:35]} 18. f4 {[%clk 0:02:40]}  O-O {[%clk 0:02:32]} 19. b3 {[%clk 0:02:35]}  Rfc8 {[%clk 0:02:31]} 20. Rf2 {[%clk 0:02:33]}  Ra8 {[%clk 0:02:28]} 21. Rxa8 {[%clk 0:02:30]}  Rxa8 {[%clk 0:02:29]} 22. Qxb4 {[%clk 0:02:30]}  Ra2 {[%clk 0:02:29]} 23. e5 {[%clk 0:02:27]}  Nf5 {[%clk 0:02:20]} 24. exd6 {[%clk 0:02:26]}  Nxd6 {[%clk 0:02:15]} 25. Re2 {[%clk 0:02:20]}  Nf5 {[%clk 0:02:13]} 26. Qb7 {[%clk 0:02:16]}  Rxc2 {[%clk 0:02:03]} 27. Qxc7 {[%clk 0:02:10]}  Rxc7 {[%clk 0:02:04]} 28. Nb2 {[%clk 0:02:09]}  Bc6 {[%clk 0:02:04]} 29. Rc2 {[%clk 0:02:09]}  Ne7 {[%clk 0:02:02]} 30. b4 {[%clk 0:01:44]}  Rc8 {[%clk 0:01:59]} 31. Bxc6 {[%clk 0:01:43]}  Rxc6 {[%clk 0:01:56]} 32. Rxc6 {[%clk 0:01:42]}  Nxc6 {[%clk 0:01:57]} 33. b5 {[%clk 0:01:43]}  Na5 {[%clk 0:01:55]} 34. Nc4 {[%clk 0:01:42]}  Nb7 {[%clk 0:01:02]} 35. Bf2 {[%clk 0:01:42]}  Kf8 {[%clk 0:01:01]} 36. Be1 {[%clk 0:01:41]}  Ke7 {[%clk 0:01:02]} 37. Bb4+ {[%clk 0:01:41]}  Kd7 {[%clk 0:01:03]} 38. Kg2 {[%clk 0:01:37]}  Kc7 {[%clk 0:00:54]} 39. Kf3 {[%clk 0:01:36]}  f5 {[%clk 0:00:54]} 40. Ke2 {[%clk 0:01:35]}  Bf6 {[%clk 0:00:47]} 41. Kd2 {[%clk 0:01:35]}  Nd8 {[%clk 0:00:45]} 42. Kc2 {[%clk 0:01:29]}  Nf7 {[%clk 0:00:43]} 43. Kb3 {[%clk 0:01:29]}  e5 {[%clk 0:00:43]} 44. Bd2 {[%clk 0:01:11]}  e4 {[%clk 0:00:40]} 45. Bb4 {[%clk 0:01:04]}  Kd7 {[%clk 0:00:30]} 46. Nd2 {[%clk 0:00:58]}  e3 {[%clk 0:00:30]} 47. Nf3 {[%clk 0:00:58]}  Nd8 {[%clk 0:00:30]} 48. Kc4 {[%clk 0:00:56]}  Ne6 {[%clk 0:00:30]} 49. Ba5 {[%clk 0:00:54]}  Kd6 {[%clk 0:00:30]} 50. Bb4+ {[%clk 0:00:52]}  Kd7 {[%clk 0:00:30]} 51. Ba5 {[%clk 0:00:46]}  Kd6 {[%clk 0:00:30]} 52. Bb6 {[%clk 0:00:46]}  Kd7 {[%clk 0:00:24]} 53. Ng1 {[%clk 0:00:34]}  Bd8 {[%clk 0:00:20]} 54. Bxd4 {[%clk 0:00:31]}  Nxd4 {[%clk 0:00:16]} 55. Kxd4 {[%clk 0:00:31]}  Kd6 {[%clk 0:00:16]} 56. Ne2 {[%clk 0:00:30]}  Bb6+ {[%clk 0:00:17]} 57. Kc4 {[%clk 0:00:31]}  Ba5 {[%clk 0:00:15]} 58. d4 {[%clk 0:00:31]}  Be1 {[%clk 0:00:14]} 59. d5 {[%clk 0:00:31]}  Ba5 {[%clk 0:00:15]} 60. Kd3 {[%clk 0:00:25]}  Bb6 {[%clk 0:00:13]} 61. Nc3 {[%clk 0:00:22]}  Ba7 {[%clk 0:00:12]} 62. Ke2 {[%clk 0:00:12]}  Bc5 {[%clk 0:00:11]} 63. Kd3 {[%clk 0:00:09]}  Ba7 {[%clk 0:00:10]} 64. Kc4 {[%clk 0:00:09]}  Bb6 {[%clk 0:00:09]} 65. Ne2 {[%clk 0:00:10]}  Ba7 {[%clk 0:00:09]} 66. Nc1 {[%clk 0:00:07]}  Bb6 {[%clk 0:00:09]} 67. Ne2 {[%clk 0:00:04]}  Ba7 {[%clk 0:00:10]} 68. Nc3 {[%clk 0:00:02]}  Bb6 {[%clk 0:00:10]} 69. Kd3 {[%clk 0:00:02]}  Ba7 {[%clk 0:00:10]} 1/2-1/2


[Site "https://www.chess.com"]

[Event "Titled Tuesday Blitz July 11 Early 2023"]
[White "Mahdavi, Reza"]
[Black "Moskvin, Anatoly"]
[WhiteFideId "12595926"]
[BlackFideId "24199990"]
[WhiteElo "2759"]
[BlackElo "2537"]
[Result "1-0"]
[Round "8"]
[TimeControl "180+2"]
[Date "2023.07.11"]
[WhiteClock "0:01:50"]
[BlackClock "0:00:22"]
[Board "33"]

1. e4 {[%clk 0:02:54]}  e5 {[%clk 0:03:00]} 2. f4 {[%clk 0:02:53]}  d5 {[%clk 0:02:55]} 3. exd5 {[%clk 0:02:50]}  exf4 {[%clk 0:02:55]} 4. Nf3 {[%clk 0:02:48]}  Bd6 {[%clk 0:02:55]} 5. Nc3 {[%clk 0:02:47]}  Ne7 {[%clk 0:02:55]} 6. d4 {[%clk 0:02:47]}  O-O {[%clk 0:02:55]} 7. Bd3 {[%clk 0:02:47]}  Bf5 {[%clk 0:02:50]} 8. O-O {[%clk 0:02:45]}  c6 {[%clk 0:02:37]} 9. dxc6 {[%clk 0:02:37]}  Nbxc6 {[%clk 0:02:38]} 10. Bxf5 {[%clk 0:02:29]}  Nxf5 {[%clk 0:02:38]} 11. Ne4 {[%clk 0:02:28]}  Re8 {[%clk 0:02:02]} 12. Nxd6 {[%clk 0:02:19]}  Qxd6 {[%clk 0:02:03]} 13. c3 {[%clk 0:02:19]}  Ne3 {[%clk 0:02:03]} 14. Bxe3 {[%clk 0:02:18]}  fxe3 {[%clk 0:02:04]} 15. Qd3 {[%clk 0:02:17]}  Re7 {[%clk 0:02:01]} 16. Rae1 {[%clk 0:02:16]}  Rae8 {[%clk 0:02:01]} 17. Ng5 {[%clk 0:02:13]}  Qh6 {[%clk 0:01:46]} 18. Qf5 {[%clk 0:02:07]}  Nd8 {[%clk 0:00:57]} 19. Re2 {[%clk 0:01:57]}  Qh5 {[%clk 0:00:49]} 20. Ree1 {[%clk 0:01:51]}  h6 {[%clk 0:00:22]} 21. Qh7+ {[%clk 0:01:50]} 1-0


[Site "https://www.chess.com"]

[Event "Titled Tuesday Blitz July 11 Early 2023"]
[White "Papasimakopoulos, Alexandros"]
[Black "Jegorovas, Aleksandras"]
[WhiteFideId "4244125"]
[BlackFideId "12801950"]
[WhiteElo "2734"]
[BlackElo "2404"]
[Result "1-0"]
[Round "8"]
[TimeControl "180+2"]
[Date "2023.07.11"]
[WhiteClock "0:01:42"]
[BlackClock "0:01:26"]
[Board "36"]

1. d4 {[%clk 0:03:00]}  Nf6 {[%clk 0:02:56]} 2. c4 {[%clk 0:03:00]}  e6 {[%clk 0:02:56]} 3. Nc3 {[%clk 0:03:00]}  Bb4 {[%clk 0:02:55]} 4. Qc2 {[%clk 0:03:00]}  O-O {[%clk 0:02:54]} 5. a3 {[%clk 0:03:01]}  Bxc3+ {[%clk 0:02:54]} 6. Qxc3 {[%clk 0:03:02]}  b5 {[%clk 0:02:55]} 7. cxb5 {[%clk 0:03:01]}  c6 {[%clk 0:02:53]} 8. Bg5 {[%clk 0:03:02]}  cxb5 {[%clk 0:02:52]} 9. e3 {[%clk 0:03:02]}  a6 {[%clk 0:02:51]} 10. Nf3 {[%clk 0:03:02]}  Bb7 {[%clk 0:02:51]} 11. Be2 {[%clk 0:03:03]}  d6 {[%clk 0:02:50]} 12. O-O {[%clk 0:03:02]}  Nbd7 {[%clk 0:02:50]} 13. Qb4 {[%clk 0:02:56]}  Qb6 {[%clk 0:02:47]} 14. a4 {[%clk 0:02:53]}  Nd5 {[%clk 0:02:45]} 15. Qd2 {[%clk 0:02:53]}  b4 {[%clk 0:02:39]} 16. a5 {[%clk 0:02:53]}  Qa7 {[%clk 0:02:36]} 17. Rfe1 {[%clk 0:02:44]}  Rac8 {[%clk 0:02:35]} 18. e4 {[%clk 0:02:44]}  N5f6 {[%clk 0:02:35]} 19. Bd3 {[%clk 0:02:45]}  d5 {[%clk 0:02:31]} 20. e5 {[%clk 0:02:40]}  Ne4 {[%clk 0:02:31]} 21. Qf4 {[%clk 0:02:40]}  f6 {[%clk 0:02:24]} 22. exf6 {[%clk 0:02:40]}  Ndxf6 {[%clk 0:02:24]} 23. Bxf6 {[%clk 0:02:36]}  Rxf6 {[%clk 0:02:23]} 24. Qe5 {[%clk 0:02:35]}  Rcf8 {[%clk 0:02:22]} 25. Re3 {[%clk 0:02:30]}  Qa8 {[%clk 0:02:06]} 26. Rc1 {[%clk 0:02:25]}  Qd8 {[%clk 0:02:03]} 27. Rc7 {[%clk 0:02:23]}  R8f7 {[%clk 0:01:58]} 28. Rxf7 {[%clk 0:02:17]}  Kxf7 {[%clk 0:01:59]} 29. Bxe4 {[%clk 0:02:16]}  dxe4 {[%clk 0:01:58]} 30. Ng5+ {[%clk 0:02:16]}  Ke7 {[%clk 0:01:58]} 31. Nxe4 {[%clk 0:02:04]}  Bxe4 {[%clk 0:01:59]} 32. Rxe4 {[%clk 0:02:04]}  Qc8 {[%clk 0:01:54]} 33. Qc5+ {[%clk 0:02:04]}  Qxc5 {[%clk 0:01:54]} 34. dxc5 {[%clk 0:02:04]}  Rf5 {[%clk 0:01:52]} 35. Rc4 {[%clk 0:01:59]}  Kd7 {[%clk 0:01:52]} 36. g4 {[%clk 0:01:55]}  Rd5 {[%clk 0:01:51]} 37. Rxb4 {[%clk 0:01:55]}  Rxc5 {[%clk 0:01:50]} 38. Rb7+ {[%clk 0:01:56]}  Kd6 {[%clk 0:01:50]} 39. Rb6+ {[%clk 0:01:56]}  Rc6 {[%clk 0:01:47]} 40. Rb7 {[%clk 0:01:56]}  Rc7 {[%clk 0:01:41]} 41. Rb8 {[%clk 0:01:56]}  Rc5 {[%clk 0:01:39]} 42. b4 {[%clk 0:01:56]}  Rg5 {[%clk 0:01:35]} 43. h3 {[%clk 0:01:54]}  h5 {[%clk 0:01:35]} 44. Rb6+ {[%clk 0:01:53]}  Ke7 {[%clk 0:01:34]} 45. f3 {[%clk 0:01:43]}  hxg4 {[%clk 0:01:34]} 46. hxg4 {[%clk 0:01:42]}  Rd5 {[%clk 0:01:26]} 47. Rxa6 {[%clk 0:01:42]} 1-0


[Site "https://www.chess.com"]

[Event "Titled Tuesday Blitz July 11 Early 2023"]
[White "Molina, Roberto Junio Brito"]
[Black "Fiorito, Francisco"]
[WhiteFideId "2109450"]
[BlackFideId "180165"]
[WhiteElo "2838"]
[BlackElo "2551"]
[Result "1-0"]
[Round "8"]
[TimeControl "180+2"]
[Date "2023.07.11"]
[WhiteClock "0:01:12"]
[BlackClock "0:00:00"]
[Board "38"]

1. d4 {[%clk 0:03:00]}  Nf6 {[%clk 0:02:59]} 2. c4 {[%clk 0:03:01]}  b6 {[%clk 0:02:59]} 3. Nc3 {[%clk 0:03:00]}  Bb7 {[%clk 0:02:59]} 4. Nf3 {[%clk 0:03:00]}  e6 {[%clk 0:02:59]} 5. a3 {[%clk 0:03:00]}  Be7 {[%clk 0:02:57]} 6. Bg5 {[%clk 0:02:54]}  d6 {[%clk 0:02:47]} 7. e3 {[%clk 0:02:52]}  h6 {[%clk 0:02:45]} 8. Bh4 {[%clk 0:02:52]}  O-O {[%clk 0:02:43]} 9. Bd3 {[%clk 0:02:50]}  Nbd7 {[%clk 0:02:44]} 10. O-O {[%clk 0:02:49]}  Re8 {[%clk 0:02:39]} 11. Rc1 {[%clk 0:02:48]}  a5 {[%clk 0:02:39]} 12. Re1 {[%clk 0:02:47]}  e5 {[%clk 0:02:37]} 13. Bb1 {[%clk 0:02:42]}  Nh5 {[%clk 0:01:58]} 14. Bxe7 {[%clk 0:02:40]}  Qxe7 {[%clk 0:01:59]} 15. Be4 {[%clk 0:02:36]}  Bxe4 {[%clk 0:01:57]} 16. Nxe4 {[%clk 0:02:37]}  Nhf6 {[%clk 0:01:57]} 17. Nc3 {[%clk 0:02:34]}  Nf8 {[%clk 0:01:50]} 18. e4 {[%clk 0:02:25]}  Ng6 {[%clk 0:01:45]} 19. Qd2 {[%clk 0:02:23]}  Nf4 {[%clk 0:01:42]} 20. g3 {[%clk 0:02:21]}  Ng6 {[%clk 0:01:40]} 21. Rcd1 {[%clk 0:02:19]}  Red8 {[%clk 0:01:37]} 22. Nd5 {[%clk 0:02:10]}  Nxd5 {[%clk 0:01:37]} 23. cxd5 {[%clk 0:02:04]}  Qf6 {[%clk 0:01:37]} 24. Kg2 {[%clk 0:02:03]}  Re8 {[%clk 0:01:38]} 25. dxe5 {[%clk 0:02:01]}  Nxe5 {[%clk 0:01:36]} 26. Nd4 {[%clk 0:01:54]}  g6 {[%clk 0:01:33]} 27. f4 {[%clk 0:01:51]}  Nd7 {[%clk 0:01:33]} 28. Nf3 {[%clk 0:01:46]}  a4 {[%clk 0:01:27]} 29. Re3 {[%clk 0:01:43]}  Re7 {[%clk 0:01:16]} 30. Rde1 {[%clk 0:01:40]}  Rae8 {[%clk 0:01:16]} 31. R1e2 {[%clk 0:01:40]}  Qg7 {[%clk 0:01:12]} 32. Qc2 {[%clk 0:01:22]}  f5 {[%clk 0:00:20]} 33. e5 {[%clk 0:01:21]}  dxe5 {[%clk 0:00:19]} 34. fxe5 {[%clk 0:01:22]}  Nxe5 {[%clk 0:00:14]} 35. Qc3 {[%clk 0:01:16]}  Nxf3 {[%clk 0:00:01]} 36. Qxg7+ {[%clk 0:01:14]}  Kxg7 {[%clk 0:00:01]} 37. Rxe7+ {[%clk 0:01:14]}  Rxe7 {[%clk 0:00:01]} 38. Rxe7+ {[%clk 0:01:14]}  Kf6 {[%clk 0:00:00]} 39. Re6+ {[%clk 0:01:12]} 1-0


[Site "https://www.chess.com"]